bitfinex/quotes_ETHUSD_20220123
["timestamp","ask_amount","ask_price","bid_price","bid_amount"]
[1642913465802,0.00113684,2437.7,2437.6,3.0]
[1642913466402,2.95113684,2437.7,2437.6,3.0]
[1642913466601,1.38397766,2437.5,2437.4,0.01477901]
[1642913466806,1.8,2437.5,2437.4,7.901e-05]
[1642913467005,1.97676783,2437.5,2437.4,7.901e-05]
[1642913467457,0.17676783,2437.5,2437.4,7.901e-05]
[1642913467759,0.1638,2437.5,2437.4,7.901e-05]
[1642913468157,0.00113684,2437.7,2437.4,7.901e-05]
[1642913474189,1.5083491,2437.7,2437.4,7.901e-05]
[1642913474391,0.1638,2437.6,2437.4,7.901e-05]
[1642913474836,4.1234967,2437.5,2437.4,7.901e-05]
[1642913475037,4.2872967,2437.5,2437.4,7.901e-05]
[1642913475738,4.2872967,2437.5,2437.0,3.0]
[1642913475739,2.95,2437.4,2437.0,3.0]
[1642913475944,0.36919,2437.3,2437.2,3.0]
[1642913476142,2.95,2437.1,2436.5,0.01364217]
[1642913476342,0.1638,2437.0,2436.5,0.01364217]
[1642913476542,1.25015559,2436.9,2436.6,0.00284211]
[1642913476743,3.15539,2436.7,2436.6,0.00284211]
[1642913477344,2.55,2436.6,2436.5,8.428e-05]
[1642913478042,2.95,2436.5,2436.0,0.49367368]
[1642913478245,0.20539,2436.4,2436.0,0.49367368]
[1642913478499,3.63435127,2436.4,2436.1,0.00284212]
[1642913478694,1.7261171,2436.4,2436.1,0.00284212]
[1642913479699,1.3297652,2436.2,2436.1,0.00284212]
[1642913479896,5.07321512,2436.2,2436.1,0.00284212]
[1642913480093,2.95,2436.1,2436.0,0.49367368]
[1642913480294,3.1138,2436.1,2436.0,0.49367368]
[1642913480899,0.1638,2436.1,2436.0,0.49367368]
[1642913481299,1.5207271,2436.4,2436.0,0.49367368]
[1642913481702,0.00113685,2436.3,2436.0,0.49367368]
[1642913486185,0.00113685,2436.3,2436.0,0.44367368]
[1642913488293,0.20539,2436.1,2436.0,0.44367368]
[1642913488493,3.31919,2436.1,2436.0,0.44367368]
[1642913491247,0.36919,2436.1,2436.0,0.44367368]
[1642913492046,0.00113685,2436.3,2436.0,0.44367368]
[1642913492047,0.1638,2436.2,2436.0,0.44367368]
[1642913492246,0.20652685,2436.3,2436.0,0.44367368]
[1642913492247,0.00113685,2436.3,2436.0,0.44367368]
[1642913493052,0.00113685,2436.3,2436.1,2.83187713]
[1642913493496,0.00113685,2436.3,2436.0,0.44367368]
[1642913495489,0.00113685,2436.3,2436.1,24.0]
[1642913496695,0.00113685,2436.3,2436.2,4.57423215]
[1642913496896,0.00113685,2436.3,2436.2,5.08076817]
[1642913497349,3.6174,2437.6,2436.3,24.0022737]
[1642913497554,3.6174,2437.6,2436.4,0.07626008]
[1642913497753,0.00511581,2437.2,2436.5,1.34814053]
[1642913498155,0.00454738,2437.1,2436.6,24.0]
[1642913498555,0.00397896,2437.0,2436.6,24.0]
[1642913498955,0.00341054,2436.9,2436.6,24.0]
[1642913499357,0.00284211,2436.8,2436.6,24.0]
[1642913499758,0.00227369,2436.7,2436.6,24.0]
[1642913500995,0.00227369,2436.7,2436.3,0.0022737]
[1642913501387,0.00170527,2436.6,2436.3,0.0022737]
[1642913501591,0.00170527,2436.6,2436.5,1.5]
[1642913501791,3.24960768,2437.5,2436.5,1.5]
[1642913501792,0.25065181,2437.4,2436.5,1.5]
[1642913501994,1.52451308,2437.1,2436.5,1.5]
[1642913502195,1.52906046,2437.1,2436.5,1.5]
[1642913502993,1.22223583,2436.9,2436.5,1.5]
[1642913503197,1.16259917,2436.7,2436.5,1.5]
[1642913503595,0.08685181,2437.3,2436.5,1.5]
[1642913503596,0.00170527,2436.6,2436.5,1.5]
[1642913505240,0.00170527,2436.6,2436.5,4.44941163]
[1642913505443,0.00170527,2436.6,2436.5,28.44941163]
[1642913505644,0.1638,2437.5,2436.6,2.95]
[1642913505846,3.7702,2438.0,2436.8,24.0]
[1642913506043,0.00454738,2437.4,2436.9,3.19559854]
[1642913506244,0.00454738,2437.4,2436.8,24.0]
[1642913506443,0.00397896,2437.3,2436.8,24.0]
[1642913506943,0.00341054,2437.2,2436.8,24.0]
[1642913507344,0.00284211,2437.1,2436.8,24.0]
[1642913507743,0.00227369,2437.0,2436.8,24.0]
[1642913507943,1.49368747,2437.5,2437.0,0.04772631]
[1642913508144,1.49368747,2437.5,2437.0,1.54772631]
[1642913508349,1.49652959,2437.5,2437.0,1.54772631]
[1642913508794,0.00284212,2437.5,2437.0,1.54772631]
[1642913511596,1.43241449,2437.5,2437.0,1.54772631]
[1642913512444,1.43241449,2437.5,2437.0,1.5]
[1642913512642,1.63780449,2437.5,2437.0,1.5]
[1642913512840,3.46760749,2437.4,2437.0,1.5]
[1642913513040,1.232972,2437.2,2437.0,1.5]
[1642913513242,1.9638,2437.1,2437.0,1.5]
[1642913513648,3.15740031,2437.1,2437.0,1.5]
[1642913514044,3.15740031,2437.1,2437.0,0.96]
[1642913514945,1.35740031,2437.1,2437.0,0.96]
[1642913515745,0.1638,2437.1,2437.0,0.96]
[1642913516391,0.1638,2437.1,2436.3,0.0022737]
[1642913516392,4.72191683,2437.1,2436.3,0.0022737]
[1642913516590,5.10654724,2437.1,2436.3,0.0022737]
[1642913516788,5.10654724,2437.1,2436.4,0.00341054]
[1642913516988,1.24,2436.9,2436.4,0.00341054]
[1642913517187,0.494,2437.0,2436.4,0.00341054]
[1642913517188,1.24,2436.5,2436.4,0.00341054]
[1642913517388,1.4038,2436.5,2436.4,0.00341054]
[1642913517587,2.86987645,2436.5,2436.4,0.00341054]
[1642913519094,3.16211826,2436.5,2436.4,0.00341054]
[1642913520145,2.95672826,2436.5,2436.4,0.00341054]
[1642913520342,2.86987645,2436.5,2436.4,0.00341054]
[1642913520743,2.70607645,2436.5,2436.4,0.00341054]
[1642913522544,6.4424615,2436.5,2436.4,0.00341054]
[1642913522746,6.4424615,2436.5,2436.3,0.0022737]
[1642913522747,3.34,2436.4,2436.3,0.0022737]
[1642913522946,6.69063728,2436.4,2436.3,0.0022737]
[1642913523146,6.77748909,2436.4,2436.3,0.0022737]
[1642913523597,6.89602728,2436.4,2436.3,0.0022737]
[1642913524002,3.54539,2436.4,2436.3,0.0022737]
[1642913524199,6.77187435,2436.4,2436.3,0.0022737]
[1642913524598,3.54539,2436.4,2436.3,0.0022737]
[1642913524998,1.24,2436.2,2435.2,1.1823271]
[1642913525201,0.21767102,2436.1,2435.1,3.2109]
[1642913525501,0.21767102,2436.1,2435.3,0.00625266]
[1642913525502,1.24,2436.0,2435.3,0.00625266]
[1642913525698,1.32685181,2436.0,2435.3,0.00625266]
[1642913525900,1.32685181,2436.0,2435.1,0.00738951]
[1642913526103,1.24,2435.5,2435.3,1.27615552]
[1642913526506,1.24,2435.5,2435.4,0.00568424]
[1642913526901,1.24,2435.5,2435.1,0.00738951]
[1642913527548,1.44539,2435.5,2435.1,0.00738951]
[1642913527956,1.24,2435.2,2435.1,0.00738951]
[1642913528151,2.65987702,2435.2,2435.1,0.00738951]
[1642913528550,1.24,2435.2,2435.1,0.00738951]
[1642913528751,1.24,2435.2,2435.1,1.70738951]
[1642913530452,1.24,2435.2,2435.1,0.00738951]
[1642913532103,2.69789958,2435.2,2435.1,0.00738951]
[1642913532301,1.24,2435.2,2435.1,0.00738951]
[1642913532501,2.65330383,2435.2,2435.1,0.00738951]
[1642913532702,1.24,2435.2,2435.1,0.00738951]
[1642913534606,1.24,2435.2,2435.1,2.00738951]
[1642913534841,1.13740576,2435.2,2435.1,2.00738951]
[1642913535845,1.13740576,2435.2,2435.1,0.00738951]
[1642913538503,1.30120576,2435.9,2435.1,0.00738951]
[1642913538898,1.13740576,2435.7,2435.1,0.00738951]
[1642913539095,1.13740576,2435.2,2435.1,0.00738951]
[1642913539497,2.61355323,2435.2,2435.1,0.00738951]
[1642913541400,1.13740576,2435.2,2435.1,0.00738951]
[1642913541601,1.13740576,2435.2,2435.1,2.95738951]
[1642913542654,1.13740576,2435.2,2435.1,4.07826932]
[1642913546302,1.13740576,2435.2,2435.1,6.99834492]
[1642913546502,1.13740576,2435.2,2435.1,7.03966866]
[1642913546902,1.13740576,2435.2,2435.1,4.07826932]
[1642913548102,1.13740576,2435.2,2435.1,28.07826932]
[1642913548502,1.13740576,2435.9,2435.1,28.07826932]
[1642913548703,1.13740576,2435.9,2435.1,4.07826932]
[1642913548902,1.13740576,2435.9,2435.2,0.00682108]
[1642913549103,1.13740576,2435.9,2435.2,24.00682108]
[1642913549303,1.13740576,2435.9,2435.3,2.81690577]
[1642913549502,1.13740576,2435.9,2435.8,0.40361334]
[1642913549943,1.13740576,2435.9,2435.8,0.40702388]
[1642913551053,1.13740576,2435.9,2435.8,3.33042233]
[1642913551254,1.13740576,2435.9,2435.8,24.40702388]
[1642913551650,0.1638,2436.7,2435.8,24.00341054]
[1642913552050,0.00113685,2436.6,2435.9,0.00284212]
[1642913552851,0.00113685,2436.6,2436.1,1.52449315]
[1642913553053,0.00113685,2436.6,2436.2,24.0]
[1642913553253,0.00113685,2436.6,2436.2,24.00113685]
[1642913553501,0.00113685,2436.6,2436.2,0.00113685]
[1642913554101,1.1044969,2436.6,2436.2,0.00113685]
[1642913554298,0.00113685,2436.6,2436.2,0.00113685]
[1642913556800,0.00113685,2436.6,2436.1,1.47563]
[1642913557001,0.00170527,2436.5,2436.1,1.47563]
[1642913557550,0.00113685,2436.4,2436.1,1.47563]
[1642913557956,0.00284212,2436.7,2436.1,1.47563]
[1642913558356,0.0022737,2436.6,2436.1,1.47563]
[1642913558757,0.00170527,2436.5,2436.1,1.47563]
[1642913559159,0.00113685,2436.4,2436.1,1.47563]
[1642913559559,1.54532508,2437.0,2436.1,1.47563]
[1642913559560,1.37049421,2436.8,2436.1,1.47563]
[1642913559763,0.00397897,2436.9,2436.1,1.47563]
[1642913559959,1.54532508,2437.0,2436.1,1.47563]
[1642913559960,0.00284212,2436.7,2436.1,28.34039626]
[1642913560159,0.00341054,2436.8,2436.1,25.47563]
[1642913560363,0.0022737,2436.6,2436.2,2.77635781]
[1642913560570,0.00284212,2436.7,2436.3,24.494]
[1642913560762,0.00170527,2436.5,2436.4,3.18478429]
[1642913561007,0.0022737,2436.6,2436.4,3.18478429]
[1642913561199,0.1638,2437.7,2436.5,3.25]
[1642913561403,41.01952236,2437.8,2436.6,3.33454889]
[1642913561600,0.00625266,2437.6,2436.7,24.0]
[1642913561799,0.00625266,2437.6,2436.9,24.0]
[1642913561999,0.00568424,2437.5,2436.6,0.494]
[1642913562204,1.37293495,2437.4,2436.6,0.494]
[1642913562401,3.82471727,2437.4,2436.7,24.0]
[1642913562602,2.4512139,2437.3,2436.7,24.0]
[1642913563003,0.00397897,2437.2,2436.8,26.76663926]
[1642913563207,2.45064548,2437.2,2436.8,26.76663926]
[1642913563409,0.00341054,2437.1,2436.8,26.76663926]
[1642913563604,2.45007705,2437.1,2436.8,26.76663926]
[1642913563804,0.00284212,2437.0,2436.8,24.0]
[1642913564023,2.44950863,2437.0,2436.8,24.0]
[1642913564204,0.0022737,2436.9,2436.6,24.494]
[1642913564408,2.44894021,2436.9,2436.6,24.494]
[1642913564605,0.00170527,2436.8,2436.6,24.494]
[1642913564844,2.39730308,2436.8,2436.6,24.494]
[1642913565044,0.00113685,2436.7,2436.6,24.494]
[1642913565244,2.39673466,2436.7,2436.6,24.494]
[1642913567954,2.39673466,2436.7,2436.4,0.09387894]
[1642913568155,2.39673466,2436.7,2436.2,24.0]
[1642913568605,2.39673466,2436.7,2436.3,0.00113684]
[1642913576505,1.51043791,2436.7,2436.3,0.00113684]
[1642913578407,0.31117,2436.7,2436.3,0.00113684]
[1642913580564,0.25065181,2436.6,2436.3,0.00113684]
[1642913580760,0.25065181,2436.6,2435.7,0.00454739]
[1642913580761,0.25992558,2436.6,2435.7,0.00454739]
[1642913580959,0.08685181,2436.5,2435.7,0.00454739]
[1642913581164,0.1638,2436.4,2435.6,0.00511581]
[1642913581361,1.13681519,2436.1,2435.6,0.00511581]
[1642913581961,1.13681519,2436.1,2435.5,0.00568423]
[1642913582563,1.13681519,2436.1,2435.6,1.47563]
[1642913582963,1.13681519,2436.1,2435.7,0.00454739]
[1642913583364,1.223667,2436.1,2435.7,0.00454739]
[1642913584005,1.50270625,2436.0,2435.7,0.00454739]
[1642913584204,0.1638,2435.9,2435.7,0.00454739]
[1642913584405,3.73602176,2435.9,2435.1,0.00795793]
[1642913584609,1.27130115,2435.5,2435.1,0.00795793]
[1642913584806,3.64916995,2435.7,2435.1,0.00795793]
[1642913585108,0.08685181,2435.6,2435.1,0.00795793]
[1642913585306,0.1638,2435.5,2435.4,1.47563]
[1642913585507,3.64916995,2435.5,2435.4,1.47563]
[1642913585706,3.64916995,2435.5,2435.4,1.48188266]
[1642913585906,4.76454645,2435.5,2435.4,1.48188266]
[1642913586111,4.76454645,2435.5,2435.4,1.48065529]
[1642913588349,4.76454645,2435.5,2435.4,0.00625266]
[1642913588753,4.76454645,2435.5,2435.1,0.00795793]
[1642913588957,3.46452348,2435.4,2434.6,6.86508041]
[1642913589154,3.46452348,2435.4,2434.6,6.8551]
[1642913589455,0.00113685,2435.3,2434.7,0.00227369]
[1642913589652,3.46566033,2435.3,2434.7,0.00227369]
[1642913589855,1.32128735,2435.2,2434.6,0.00284211]
[1642913590056,7.94104317,2435.2,2434.6,0.00284211]
[1642913590255,3.46452348,2435.1,2434.6,0.00284211]
[1642913590858,3.46452348,2435.1,2435.0,1.47440263]
[1642913591698,3.46452348,2435.1,2435.0,25.47440263]
[1642913591699,2.76617069,2435.1,2435.0,25.47440263]
[1642913591900,0.00113685,2435.3,2435.0,25.47440263]
[1642913592100,0.00113685,2435.3,2435.0,26.8409397]
[1642913592296,0.00113685,2435.3,2435.0,25.47440263]
[1642913592903,1.15259457,2435.3,2435.0,25.47440263]
[1642913594505,0.00113685,2435.3,2435.0,25.47440263]
[1642913594752,1.9645284,2435.2,2435.0,25.47440263]
[1642913596158,3.7453,2436.4,2435.2,2.95]
[1642913596361,2.10113899,2436.3,2435.8,0.01210542]
[1642913596557,0.00397897,2436.0,2435.8,0.01210542]
[1642913596956,0.00341054,2435.9,2435.8,24.01210542]
[1642913597158,2.10454953,2435.9,2435.8,24.01210542]
[1642913598056,2.10454953,2435.9,2435.8,24.0]
[1642913598356,2.10454953,2435.9,2435.4,0.494]
[1642913598606,2.10454953,2435.9,2435.5,24.0]
[1642913598806,0.00284212,2435.8,2435.5,24.0]
[1642913599004,1.77339489,2435.8,2435.5,24.0]
[1642913599204,0.00227369,2435.7,2435.5,24.0]
[1642913599407,1.77282646,2435.7,2435.5,24.0]
[1642913599604,0.00170527,2435.6,2435.5,24.0]
[1642913599803,1.77225804,2435.6,2435.5,24.0]
[1642913600405,0.73426639,2435.6,2435.5,24.0]
[1642913602448,0.44298854,2435.6,2435.5,24.0]
[1642913603852,0.1638,2436.4,2435.7,0.10503631]
[1642913604053,1.1755,2436.8,2435.8,24.0]
[1642913604054,0.44128327,2436.3,2435.8,24.0]
[1642913604252,0.44128327,2436.2,2436.0,24.0]
[1642913604453,0.44128327,2436.2,2436.1,2.90074019]
[1642913604655,0.44128327,2436.2,2436.0,24.0]
[1642913604853,0.59157608,2436.2,2436.1,1.48920248]
[1642913605050,0.59157608,2436.2,2436.0,24.0]
[1642913605451,0.00284212,2436.1,2436.0,24.0]
[1642913605655,0.5944182,2436.1,2435.7,1.31565]
[1642913605852,0.5944182,2436.1,2435.8,24.0]
[1642913606101,0.0022737,2436.0,2435.8,24.0]
[1642913606301,1.51004005,2436.0,2435.8,24.0]
[1642913606503,0.00170527,2435.9,2435.8,24.0]
[1642913606704,1.50947162,2435.9,2435.8,24.0]
[1642913613052,0.1638,2436.6,2436.0,24.0]
[1642913613255,1.55847434,2436.1,2435.2,3.72584367]
[1642913613514,1.54757072,2436.0,2435.2,3.72584367]
[1642913613708,1.38377072,2435.9,2435.4,0.00284212]
[1642913613908,0.1638,2435.8,2435.4,0.00284212]
[1642913614107,1.54757072,2435.8,2435.4,0.00284212]
[1642913614309,1.38377072,2435.7,2435.4,0.00284212]
[1642913614713,1.2036526,2436.5,2435.5,26.95]
[1642913614714,0.1638,2436.4,2435.5,26.95]
[1642913614911,0.1638,2436.4,2435.5,27.444]
[1642913614912,1.29522761,2436.4,2435.5,27.444]
[1642913615214,1.13370131,2436.3,2435.9,1.10360128]
[1642913615410,1.13370131,2436.3,2436.1,0.10867909]
[1642913615710,1.13370131,2436.3,2436.1,2.10867909]
[1642913615711,0.00170527,2436.2,2436.1,2.10867909]
[1642913616012,1.13313288,2436.2,2436.1,26.10867909]
[1642913616410,0.78814995,2436.2,2435.8,0.494]
[1642913616610,0.1638,2436.8,2435.8,0.494]
[1642913616611,0.78814995,2436.1,2435.8,0.494]
[1642913616810,0.78814995,2436.1,2435.6,0.00170527]
[1642913616811,0.78814995,2436.0,2435.9,0.00170527]
[1642913617010,0.95194995,2436.0,2435.9,0.00170527]
[1642913617256,0.78814995,2436.0,2435.5,0.00397896]
[1642913617454,0.78814995,2435.9,2435.6,1.44474295]
[1642913617654,0.78814995,2435.8,2435.6,1.44474295]
[1642913617857,0.1638,2436.4,2435.7,0.00284212]
[1642913618153,1.49962196,2436.0,2435.7,0.00284212]
[1642913618355,0.95194995,2435.9,2435.7,0.00284212]
[1642913618559,0.56581352,2435.8,2435.3,0.00511581]
[1642913618765,3.89455181,2436.3,2435.4,24.0]
[1642913618766,0.56581352,2435.7,2435.4,24.0]
[1642913618962,0.56581352,2435.6,2435.4,24.50636475]
[1642913619158,0.00113685,2436.4,2435.5,0.00397896]
[1642913619360,0.00113685,2436.4,2435.6,1.47440263]
[1642913619361,0.72961352,2436.3,2435.6,1.47440263]
[1642913619559,0.56581352,2436.2,2435.6,1.47440263]
[1642913619759,0.1638,2436.1,2435.7,0.00284212]
[1642913619959,0.72961352,2436.1,2435.7,0.00284212]
[1642913620259,0.00113685,2436.4,2435.7,0.00284212]
[1642913620260,0.56581352,2436.0,2435.7,0.00284212]
[1642913620464,0.82488701,2435.9,2435.7,0.00284212]
[1642913620661,0.82488701,2435.8,2435.7,0.00284212]
[1642913621610,0.82488701,2436.2,2435.7,1.70284212]
[1642913622011,0.82488701,2436.2,2435.8,0.00227369]
[1642913622412,0.1638,2436.3,2435.8,0.00227369]
[1642913623215,1.40825447,2436.1,2435.8,0.00227369]
[1642913623416,1.54003061,2435.9,2435.8,0.00227369]
[1642913623618,0.1638,2435.9,2435.7,0.00284212]
[1642913623818,0.1638,2435.8,2435.7,0.00284212]
[1642913624017,0.1638,2435.9,2435.7,0.00284212]
[1642913624219,0.08685181,2436.0,2435.7,0.00284212]
[1642913624420,0.1638,2436.3,2435.7,0.00284212]
[1642913624626,0.08685181,2436.2,2435.7,0.00284212]
[1642913624850,0.1638,2436.1,2435.7,0.00284212]
[1642913625249,0.08685181,2436.0,2435.7,0.00284212]
[1642913625951,0.1638,2436.1,2435.7,0.00284212]
[1642913626149,0.1638,2436.2,2435.7,0.00284212]
[1642913627051,0.25065181,2436.2,2435.7,0.00284212]
[1642913628155,1.16661561,2436.1,2435.7,0.00284212]
[1642913628351,0.1638,2436.0,2435.7,0.00284212]
[1642913628617,3.67108252,2436.0,2435.7,0.00284212]
[1642913628812,0.08685181,2435.9,2435.3,0.00511581]
[1642913629012,0.1638,2435.8,2435.3,0.00511581]
[1642913629412,0.08685181,2435.7,2435.3,0.00511581]
[1642913629612,0.01240576,2436.2,2435.3,0.00511581]
[1642913629613,0.1638,2436.1,2435.3,0.00511581]
[1642913630011,1.4286149,2435.9,2435.3,0.00511581]
[1642913630212,0.1638,2435.8,2435.3,0.00511581]
[1642913630413,0.1638,2435.8,2435.4,1.47440263]
[1642913630613,0.25065181,2435.8,2435.4,1.47440263]
[1642913630817,0.25065181,2435.8,2435.5,0.00397896]
[1642913631415,0.1638,2435.8,2435.5,0.00397896]
[1642913631814,0.20065181,2435.8,2435.5,0.00397896]
[1642913632652,0.1138,2435.8,2435.5,0.00397896]
[1642913633056,0.08685181,2435.7,2435.5,0.00397896]
[1642913635357,0.1138,2435.8,2435.5,0.00397896]
[1642913639109,0.1138,2435.8,2435.3,0.00511581]
[1642913639853,1.22011774,2435.8,2435.4,1.29347147]
[1642913640254,1.22011774,2435.8,2435.5,0.00397896]
[1642913640656,3.3009356,2435.7,2435.5,0.00397896]
[1642913640857,0.08685181,2435.7,2435.3,0.00511581]
[1642913641065,0.08685181,2435.6,2435.2,3.68095948]
[1642913641460,0.00113685,2435.5,2435.2,3.68095948]
[1642913641659,1.19208599,2435.4,2435.2,3.68095948]
[1642913641860,1.42807386,2435.3,2435.2,3.68095948]
[1642913644208,1.42807386,2435.3,2435.2,7.78095948]
[1642913645216,1.2789378,2435.4,2435.2,7.78095948]
[1642913645217,1.19208599,2435.4,2435.2,7.78095948]
[1642913645912,1.2789378,2435.4,2435.2,7.78095948]
[1642913646310,1.36209397,2435.3,2435.2,7.78095948]
[1642913646513,1.36209397,2435.3,2434.5,0.02]
[1642913646514,2.95,2435.2,2434.5,0.02]
[1642913646714,0.01201766,2434.7,2434.5,0.02]
[1642913646912,0.01201766,2434.7,2434.6,0.00397896]
[1642913647358,1.91201766,2434.7,2434.6,0.00397896]
[1642913647558,3.35433651,2434.7,2434.6,0.00397896]
[1642913647759,4.68209024,2434.7,2434.6,0.00397896]
[1642913648159,2.78209024,2434.7,2434.6,0.00397896]
[1642913648361,1.44231885,2434.7,2434.6,0.00397896]
[1642913648563,1.2487,2435.0,2434.6,0.00397896]
[1642913648961,3.6481,2435.3,2434.6,0.00397896]
[1642913649162,0.00113685,2435.5,2434.7,24.0]
[1642913649365,0.00113685,2435.5,2434.8,3.14880845]
[1642913649564,0.00113685,2435.5,2434.9,24.0]
[1642913649762,0.00113685,2435.5,2434.9,24.00227369]
[1642913649963,0.00113685,2435.5,2435.0,0.00170527]
[1642913650362,0.00113685,2435.5,2434.8,0.00284212]
[1642913650763,1.28621293,2435.4,2434.8,0.00284212]
[1642913651212,2.52664828,2435.4,2434.8,0.00284212]
[1642913651814,2.61350009,2435.4,2434.8,0.00284212]
[1642913652214,1.32728716,2435.4,2434.8,0.00284212]
[1642913653217,1.50866895,2435.3,2434.8,0.00284212]
[1642913653614,1.59552076,2435.3,2434.8,0.00284212]
[1642913654018,0.08685181,2435.3,2434.8,0.00284212]
[1642913654317,0.00113685,2435.5,2434.8,0.00284212]
[1642913654753,0.00113685,2435.5,2434.8,4.10284212]
[1642913655152,0.00113685,2435.5,2434.9,0.00227369]
[1642913655554,0.00113685,2435.5,2435.4,1.2328934]
[1642913656557,0.00113685,2435.5,2434.9,0.00227369]
[1642913657559,0.00113685,2435.5,2435.4,1.12117575]
[1642913658810,0.00113685,2435.5,2434.7,0.00341054]
[1642913660911,0.00113685,2435.5,2435.4,1.3058737]
[1642913661716,0.00113685,2435.5,2434.7,30.23452932]
[1642913661913,0.00113685,2435.5,2434.7,27.32851054]
[1642913662114,0.00113685,2435.5,2434.8,0.00284212]
[1642913662356,0.08685181,2435.4,2434.8,0.00284212]
[1642913663455,1.54889626,2435.2,2434.8,0.00284212]
[1642913663863,0.08685181,2435.1,2434.8,0.00284212]
[1642913664267,0.494,2435.0,2434.8,0.00284212]
[1642913664760,3.52024744,2434.9,2434.8,0.00284212]
[1642913664960,4.01424744,2434.9,2434.8,0.00284212]
[1642913665164,4.01424744,2434.9,2434.8,4.10284212]
[1642913665363,2.95,2434.8,2434.1,0.02]
[1642913665565,4.21406761,2434.7,2434.1,0.02]
[1642913665764,4.21406761,2434.7,2434.2,0.00341054]
[1642913665765,0.20539,2434.6,2434.2,0.00341054]
[1642913666011,2.67099491,2434.5,2434.2,0.00341054]
[1642913666206,5.97699283,2434.5,2434.2,0.00341054]
[1642913666404,6.06384464,2434.5,2434.2,0.00341054]
[1642913666604,0.08685181,2434.4,2434.2,0.00341054]
[1642913675110,0.08685181,2434.4,2434.2,4.10341054]
[1642913675509,0.08685181,2434.4,2434.3,0.00284211]
[1642913676111,0.29224181,2434.4,2434.3,0.00284211]
[1642913676909,2.69224181,2434.4,2434.3,0.00284211]
[1642913678160,0.29224181,2434.4,2434.3,0.00284211]
[1642913679566,1.54810148,2434.5,2434.3,0.00284211]
[1642913680563,1.22953186,2434.4,2434.3,0.00284211]
[1642913680763,1.63495329,2434.5,2434.3,0.00284211]
[1642913681807,1.52783561,2434.4,2434.3,0.00284211]
[1642913682209,1.63495329,2434.5,2434.3,0.00284211]
[1642913682409,0.08685181,2434.4,2434.3,0.00284211]
[1642913682809,0.29224181,2434.4,2434.3,0.00284211]
[1642913683109,1.73685181,2434.4,2434.3,0.00284211]
[1642913683310,0.08685181,2434.4,2434.3,0.00284211]
[1642913683511,1.58258208,2434.4,2434.3,0.00284211]
[1642913683711,1.78797208,2434.4,2434.3,0.00284211]
[1642913687161,1.78797208,2434.4,2434.3,0.00128327]
[1642913687363,1.78797208,2434.4,2434.2,0.0018517]
[1642913688527,0.29224181,2434.4,2434.2,0.08291537]
[1642913688922,0.29224181,2434.4,2434.3,0.00128327]
[1642913689723,0.29224181,2434.4,2434.2,0.0018517]
[1642913690328,0.20539,2434.4,2434.2,0.0018517]
[1642913691925,0.20539,2434.4,2434.0,1.20226944]
[1642913692363,0.20539,2434.4,2433.9,0.02]
[1642913692764,0.20539,2434.4,2434.0,0.00113684]
[1642913693968,0.20539,2434.4,2434.1,1.13483823]
[1642913694169,1.25470493,2434.5,2434.1,1.13483823]
[1642913694369,1.25470493,2434.5,2434.0,0.00113684]
[1642913694570,0.00113685,2434.4,2434.0,0.00113684]
[1642913696022,0.00113685,2434.4,2434.0,1.46739117]
[1642913697920,0.00113685,2434.4,2434.0,25.46739117]
[1642913701669,0.00113685,2434.4,2434.2,24.0]
[1642913701865,0.00113685,2434.4,2434.3,27.01820366]
[1642913702666,0.00113685,2434.4,2434.3,3.01820366]
[1642913702867,0.00113685,2434.4,2434.2,0.2711]
[1642913703068,0.00113685,2434.4,2434.1,4.2416]
[1642913703270,0.00113685,2434.4,2434.0,1.46739117]
[1642913703526,0.00113685,2434.4,2434.0,0.00113684]
[1642913705316,0.00113685,2434.4,2434.1,1.28168831]
[1642913705518,0.00113685,2434.4,2434.2,24.0]
[1642913707463,0.00113685,2434.4,2434.1,1.28168831]
[1642913710270,0.00113685,2434.4,2434.2,24.0]
[1642913711913,0.00113685,2434.4,2434.1,1.28168831]
[1642913712115,0.00113685,2434.4,2434.1,25.28168831]
[1642913712317,0.00113685,2434.4,2434.1,1.28168831]
[1642913713923,0.00113685,2434.4,2434.0,7.34023684]
[1642913714120,0.08870249,2434.4,2434.0,7.34023684]
[1642913714522,0.08870249,2434.4,2434.0,4.10113684]
[1642913714969,55.40269893,2435.4,2434.2,2.95]
[1642913715166,55.40269893,2435.4,2434.4,24.0]
[1642913715366,0.00397896,2435.1,2434.4,24.0]
[1642913715767,0.00341054,2435.0,2434.2,1.2323]
[1642913715967,0.00341054,2435.0,2434.3,3.49439171]
[1642913716167,0.00284212,2434.9,2434.2,1.2323]
[1642913716569,1.44245337,2435.3,2434.2,1.2323]
[1642913716570,0.00227369,2434.8,2434.2,1.2323]
[1642913716967,0.00170527,2434.7,2434.3,1.2018881]
[1642913717169,0.00170527,2434.7,2434.2,1.2323]
[1642913717367,0.00113685,2434.6,2434.1,0.00170527]
[1642913717769,1.26255886,2434.8,2434.1,0.00170527]
[1642913717770,0.00170527,2434.7,2434.1,0.00170527]
[1642913717973,0.01400064,2434.7,2434.1,0.00170527]
[1642913718170,0.00113685,2434.6,2434.1,0.00170527]
[1642913718818,1.42666001,2434.6,2434.1,0.00170527]
[1642913719417,0.00113685,2434.6,2434.1,0.00170527]
[1642913719616,0.00113685,2434.6,2434.1,2.76877265]
[1642913719815,0.00113685,2434.6,2434.1,27.93177265]
[1642913720016,0.00113685,2434.6,2434.2,0.00113685]
[1642913724367,0.00113685,2434.6,2434.3,0.07778077]
[1642913724766,0.00113685,2434.6,2434.3,24.07778077]
[1642913724965,0.00113685,2434.6,2434.4,2.79053499]
[1642913725165,0.00113685,2434.6,2434.5,24.0]
[1642913726020,0.00113685,2434.6,2434.5,25.46919271]
[1642913728621,3.685e-05,2434.6,2434.5,25.46919271]
[1642913728823,3.685e-05,2434.6,2434.5,24.794]
[1642913729022,3.685e-05,2434.6,2434.5,28.58796064]
[1642913729221,3.685e-05,2434.6,2434.5,30.15826064]
[1642913729425,0.1138,2435.8,2434.6,2.95]
[1642913729630,0.1138,2435.8,2434.8,0.07786643]
[1642913729865,0.1138,2435.8,2434.9,24.0]
[1642913729866,0.00625265,2435.7,2434.9,24.0]
[1642913730267,0.00568423,2435.6,2435.3,1.23915555]
[1642913730467,0.00568423,2435.6,2435.0,25.2221]
[1642913730672,0.00511581,2435.5,2435.0,24.0]
[1642913731170,0.00454738,2435.4,2434.7,3.1808]
[1642913731368,0.00454738,2435.4,2435.3,1.23321278]
[1642913731570,0.1138,2435.8,2435.3,1.23321278]
[1642913731769,0.1138,2435.8,2435.0,1.1649]
[1642913731966,0.00568423,2435.6,2435.0,1.1649]